bitfinex-derivatives/quotes_ETHF0:USTF0_20241024
["timestamp","ask_amount","ask_price","bid_price","bid_amount"]
[1729738809907,4.67854545,2558.0,2557.9,0.35218]
[1729738810312,4.32636545,2558.0,2557.9,0.35218]
[1729738811209,4.32636545,2558.0,2557.6,3.6278]
[1729738811210,4.16661443,2558.1,2557.8,0.35218]
[1729738811509,0.35219,2557.8,2557.7,0.3522]
[1729738811708,1.2384,2558.2,2557.6,3.6278]
[1729738811709,0.35221,2557.7,2557.6,3.6278]
[1729738811900,0.4228,2557.7,2557.6,3.98002]
[1729738812104,0.77501,2557.7,2557.6,3.98002]
[1729738812615,0.77501,2557.7,2557.6,3.6278]
[1729738812913,0.77501,2557.7,2557.6,3.98002]
[1729738813701,0.4228,2557.7,2557.6,3.98002]
[1729738814320,0.77501,2557.7,2557.6,3.98002]
[1729738814613,0.4228,2557.7,2557.6,3.98002]
[1729738815311,0.4228,2557.7,2557.4,0.4294]
[1729738815512,0.35223,2557.6,2557.5,0.35223]
[1729738815719,0.77502,2557.7,2557.6,0.35222]
[1729738817009,0.77502,2557.7,2557.4,0.4294]
[1729738817010,0.35222,2557.6,2557.5,0.35222]
[1729738817416,0.35222,2557.6,2557.3,3.2078]
[1729738817417,0.35223,2557.6,2557.4,0.35224]
[1729738817611,0.35224,2557.5,2557.3,3.2078]
[1729738817812,0.4228,2557.7,2557.3,3.56005]
[1729738818018,0.35224,2557.5,2557.3,3.56005]
[1729738818210,0.35224,2557.5,2557.3,3.2078]
[1729738818810,0.8219,2557.6,2557.3,3.2078]
[1729738819025,4.08543348,2557.4,2557.3,3.56005]
[1729738819226,4.43767348,2557.5,2557.3,3.68246169]
[1729738819424,0.35224,2557.5,2557.4,0.35225]
[1729738819927,4.43767348,2557.5,2557.4,0.35225]
[1729738820227,4.43767348,2557.5,2557.3,3.56005]
[1729738820428,4.43767348,2557.5,2557.4,0.35225]
[1729738820828,4.08543348,2557.5,2557.3,3.2078]
[1729738821029,0.35225,2557.4,2557.3,3.56006]
[1729738821724,4.43767348,2557.5,2557.3,3.56006]
[1729738822430,4.08543348,2557.5,2557.3,3.56006]
[1729738822627,0.35225,2557.4,2557.3,3.56006]
[1729738824431,0.35225,2557.4,2557.3,3.2078]
[1729738824633,0.35225,2557.4,2557.3,3.56006]
[1729738825138,0.35231,2557.0,2556.9,3.2078]
[1729738825432,0.35231,2557.0,2556.7,0.4109]
[1729738825433,0.35227,2557.3,2557.1,0.35228]
[1729738825621,40.86268071,2557.2,2557.1,0.35228]
[1729738825818,45.32427042,2557.2,2557.1,0.35228]
[1729738826032,4.52427042,2557.2,2557.1,0.35228]
[1729738826530,0.06268071,2557.2,2557.1,0.35228]
[1729738826828,3.2078,2557.6,2557.5,0.35224]
[1729738827220,4.22401123,2557.4,2557.3,0.35226]
[1729738827426,7.78404123,2557.6,2557.4,0.35224]
[1729738827624,3.56003,2557.6,2557.4,0.35224]
[1729738827832,4.22401123,2557.5,2557.4,0.35224]
[1729738828727,3.56003,2557.6,2557.5,0.35224]
[1729738828728,3.2078,2557.6,2557.5,0.35224]
[1729738832431,0.77501,2557.7,2557.6,0.35222]
[1729738832936,0.35223,2557.6,2557.4,0.35224]
[1729738833130,0.35223,2557.6,2557.5,0.35224]
[1729738833330,0.35223,2557.6,2557.2,4.0114]
[1729738833331,4.46778876,2557.5,2557.4,0.35224]
[1729738833531,4.82001876,2557.6,2557.4,0.35224]
[1729738833731,0.35223,2557.6,2557.4,0.35224]
[1729738833927,0.35224,2557.5,2557.4,0.35224]
[1729738834234,4.35277681,2557.6,2557.4,0.35224]
[1729738834434,0.35226,2557.3,2557.2,3.2078]
[1729738834736,0.35226,2557.3,2556.2,13.74819873]
[1729738834737,7.2165899,2557.5,2556.8,4.4697]
[1729738834940,0.35231,2557.0,2556.9,0.12243151]
[1729738835137,0.35231,2557.0,2556.8,4.82203]
[1729738835340,0.3523,2557.1,2556.9,0.35231]
[1729738835741,4.81552874,2557.1,2556.9,0.35231]
[1729738836239,4.46322874,2557.1,2556.8,4.4697]
[1729738836538,4.81552874,2557.1,2556.9,0.35231]
[1729738836940,4.46322874,2557.1,2556.9,0.35231]
[1729738837136,0.35232,2556.9,2556.8,4.4697]
[1729738837331,0.35232,2556.9,2556.8,4.0345]
[1729738838136,0.35232,2556.9,2556.8,4.38683]
[1729738838544,0.35232,2556.9,2556.8,3.6258]
[1729738838835,4.46151532,2556.9,2556.8,3.56013]
[1729738839033,0.3523,2557.1,2556.9,0.35231]
[1729738839236,0.3523,2557.1,2557.0,0.3523]
[1729738839531,0.3523,2557.1,2556.9,0.78791]
[1729738839935,0.3523,2557.1,2556.9,0.4356]
[1729738840140,0.3523,2557.1,2557.0,0.3523]
[1729738841335,0.35229,2557.1,2557.0,0.3523]
[1729738842244,0.35229,2557.1,2556.9,0.78791]
[1729738842837,0.3523,2557.0,2556.9,0.78791]
[1729738843033,0.3523,2557.1,2556.9,0.78791]
[1729738843338,0.3523,2557.1,2556.9,0.4356]
[1729738843339,2.79571309,2557.0,2556.9,0.4356]
[1729738843536,0.35232,2556.9,2556.8,3.2078]
[1729738843842,5.30567822,2556.9,2556.8,3.2078]
[1729738844456,9.21687822,2556.9,2556.8,3.2078]
[1729738845539,0.35237,2556.6,2556.4,3.56018]
[1729738845736,0.35237,2556.5,2556.4,3.6326]
[1729738845939,0.35237,2556.5,2556.4,3.98499]
[1729738845940,4.42870675,2556.5,2556.4,3.98499]
[1729738846139,4.42870675,2556.5,2556.4,3.2078]
[1729738846447,4.42870675,2556.5,2556.4,3.56019]
[1729738846638,4.42870675,2556.5,2556.4,3.2078]
[1729738846838,8.34070675,2556.5,2556.4,3.2078]
[1729738847040,0.35242,2556.2,2556.1,3.2078]
[1729738847441,4.58854813,2556.2,2556.1,3.2078]
[1729738848036,4.23612813,2556.2,2556.1,3.2078]
[1729738848240,4.23612813,2556.2,2556.1,3.56023]
[1729738848640,4.53310057,2556.3,2556.1,3.2078]
[1729738848836,0.35241,2556.3,2556.1,3.2078]
[1729738849350,0.35241,2556.3,2556.1,3.56023]
[1729738849351,4.31732777,2556.2,2556.1,3.56023]
[1729738849951,4.66973777,2556.2,2556.1,3.2078]
[1729738850148,4.66973777,2556.2,2556.1,3.56023]
[1729738850348,0.35241,2556.2,2556.1,3.56023]
[1729738850650,4.7662795,2556.2,2556.1,3.56023]
[1729738850841,4.4138695,2556.2,2556.1,3.56023]
[1729738851241,4.30951707,2556.3,2556.1,3.2078]
[1729738851442,0.35239,2556.4,2556.2,0.35241]
[1729738851643,4.66190707,2556.4,2556.2,0.78781]
[1729738851836,2.84661309,2556.5,2556.2,0.4354]
[1729738852041,2.79579309,2556.5,2556.3,0.35239]
[1729738852241,4.47736599,2556.4,2556.3,0.35239]
[1729738852449,4.82975599,2556.4,2556.3,0.35239]
[1729738853151,4.47736599,2556.4,2556.2,0.78781]
[1729738853351,4.82976599,2556.4,2556.2,0.78781]
[1729738854752,4.47736599,2556.4,2556.2,0.4354]
[1729738854956,4.47736599,2556.4,2556.2,0.78781]
[1729738855143,4.82975599,2556.4,2556.2,0.78781]
[1729738856255,2.44341309,2556.3,2556.0,3.2078]
[1729738856441,3.28071309,2556.3,2556.0,3.2078]
[1729738856643,4.7256361,2556.2,2556.0,3.56024]
[1729738856848,0.4183,2556.1,2556.0,3.56024]
[1729738857347,4.50020699,2556.1,2556.0,3.56024]
[1729738857750,6.94362008,2556.1,2555.8,0.35246]
[1729738857953,6.94362008,2556.1,2555.9,0.35246]
[1729738858256,0.35244,2556.0,2555.8,0.35246]
[1729738858747,4.37436101,2555.9,2555.8,0.35246]
[1729738858948,4.37436101,2555.9,2555.7,3.2078]
[1729738859151,0.35247,2555.8,2555.7,3.56028]
[1729738860560,0.35247,2555.8,2555.7,3.2078]
[1729738860747,2.86171309,2556.1,2555.7,3.2078]
[1729738860949,41.57074,2556.1,2555.9,0.35245]
[1729738861148,4.08033917,2556.0,2555.9,0.35245]
[1729738862450,4.08033917,2556.0,2555.8,0.35246]
[1729738862950,4.08033917,2556.0,2555.6,1.2623]
[1729738863355,0.35246,2555.9,2555.6,1.61479]
[1729738863558,0.35246,2555.9,2555.6,1.2623]
[1729738863758,0.35246,2555.9,2555.7,0.35247]
[1729738864148,4.08033917,2556.0,2555.6,1.2623]
[1729738864344,4.08033917,2556.0,2555.7,0.35248]
[1729738864650,0.35247,2555.8,2555.7,0.35248]
[1729738864854,4.08033917,2556.0,2555.7,0.35248]
[1729738865055,0.35246,2555.9,2555.8,0.35247]
[1729738865255,0.35246,2555.9,2555.6,1.2623]
[1729738865557,4.08033917,2556.0,2555.9,0.35246]
[1729738865951,4.43277917,2556.0,2555.6,1.2623]
[1729738866253,4.43277917,2556.0,2555.8,0.35246]
[1729738866454,4.43277917,2556.0,2555.7,0.35248]
[1729738866455,0.35247,2555.9,2555.7,0.35248]
[1729738866955,0.35247,2555.9,2555.8,0.35247]
[1729738867157,4.43278917,2556.0,2555.8,0.35247]
[1729738867745,4.43278917,2556.0,2555.9,0.35246]
[1729738868151,4.43278917,2556.0,2555.6,1.2623]
[1729738868552,4.43278917,2556.0,2555.9,0.35246]
[1729738869353,4.43278917,2556.0,2555.8,0.35246]
[1729738870460,0.35246,2555.9,2555.8,0.35246]
[1729738870856,0.35246,2555.9,2555.6,1.2623]
[1729738870857,4.08033917,2556.0,2555.6,1.2623]
[1729738871161,4.43278917,2556.0,2555.8,0.35246]
[1729738871361,4.43278917,2556.0,2555.6,1.2623]
[1729738871559,4.08033917,2556.0,2555.9,0.35246]
[1729738871760,4.43277917,2556.0,2555.9,0.35246]
[1729738872361,0.35246,2555.9,2555.8,0.35246]
[1729738872549,4.08033917,2556.0,2555.6,1.2623]
[1729738872750,4.08033917,2556.0,2555.7,0.35248]
[1729738872956,0.35247,2555.9,2555.7,0.35248]
[1729738873767,0.35247,2555.9,2555.6,1.2623]
[1729738874057,0.35247,2555.9,2555.8,0.35247]
[1729738874464,4.08033917,2556.0,2555.8,0.35247]
[1729738874762,4.43278917,2556.0,2555.8,0.35247]
[1729738874964,0.35246,2555.9,2555.7,0.35247]
[1729738875156,0.35246,2555.9,2555.6,1.2623]
[1729738875357,0.35246,2555.9,2555.8,0.35247]
[1729738875656,5.07239182,2555.9,2555.8,0.35247]
[1729738875862,4.71993182,2555.9,2555.6,1.21579]
[1729738876158,0.35248,2555.7,2555.6,0.78529]
[1729738876464,0.35248,2555.7,2555.6,0.4328]
[1729738877357,0.3525,2555.6,2555.5,0.3525]
[1729738877554,0.782,2555.6,2555.5,0.3525]
[1729738877863,4.75576798,2555.6,2555.4,4.0501]
[1729738878061,7.19918107,2555.6,2555.1,3.2078]
[1729738878259,7.55169107,2555.6,2555.5,0.35251]
[1729738878558,7.55169107,2555.6,2555.4,0.35251]
[1729738878962,0.35252,2555.5,2555.4,0.35252]
[1729738879167,0.4086,2555.5,2555.4,0.35252]
[1729738879462,4.7447512,2555.5,2555.4,0.35252]
[1729738880158,4.3361512,2555.5,2555.4,0.35252]
[1729738880364,4.3361512,2555.5,2555.4,3.56032]
[1729738881753,4.3361512,2555.5,2555.4,0.35252]
[1729738884061,4.3361512,2555.5,2555.4,4.26612]
[1729738884262,0.35246,2555.9,2555.8,0.35247]
[1729738884466,6.00366309,2556.0,2555.8,0.35247]
[1729738884667,4.37224337,2555.9,2555.8,0.35247]
[1729738885464,4.72470337,2555.9,2555.8,0.35247]
[1729738886059,4.37224337,2555.9,2555.8,0.35247]
[1729738886273,4.72470337,2555.9,2555.7,1.2953]
[1729738886468,5.12550337,2555.9,2555.7,1.64777]
[1729738886774,5.12550337,2555.9,2555.8,0.35247]
[1729738888261,5.12550337,2555.9,2555.7,0.8703]
[1729738888456,5.12550337,2555.9,2555.8,0.35247]
[1729738888870,4.77304337,2555.9,2555.8,0.35247]
[1729738889060,0.35243,2556.1,2555.7,0.8703]
[1729738889258,0.35243,2556.1,2556.0,0.35244]
[1729738889456,4.6061493,2556.0,2555.9,0.35245]
[1729738889661,4.2537093,2556.1,2555.8,0.35247]
[1729738889862,4.2537093,2556.2,2555.8,0.35247]
[1729738890068,0.35245,2556.0,2555.8,0.35247]
[1729738890667,2.44341309,2556.1,2555.7,0.78378]
[1729738890875,4.81441856,2555.9,2555.7,1.20477]
[1729738891168,0.35246,2555.9,2555.8,0.35247]
[1729738891565,4.27118011,2555.9,2555.8,0.35247]
[1729738891877,0.35246,2555.9,2555.8,0.35247]
[1729738892266,4.44295996,2555.9,2555.8,0.35247]
[1729738892460,4.09049996,2555.9,2555.7,1.20478]
[1729738892669,4.44296996,2555.9,2555.7,1.20478]
[1729738892874,4.09049996,2556.0,2555.7,0.8523]
[1729738893074,5.10122489,2555.8,2555.7,1.20478]
[1729738893568,0.79127,2555.8,2555.7,0.78378]
[1729738893976,0.4388,2555.8,2555.7,0.78378]
[1729738894170,0.35247,2555.8,2555.7,0.4313]
[1729738894375,0.8453,2555.8,2555.7,0.78378]
[1729738895275,1.19777,2555.8,2555.7,0.78378]
[1729738895870,1.19777,2555.8,2555.7,0.4313]
[1729738896175,1.19777,2555.8,2555.7,0.78378]
[1729738896367,1.19777,2555.8,2555.7,0.4313]
[1729738897176,0.35248,2555.7,2555.6,3.56029]
[1729738897372,1.19778,2555.8,2555.7,0.35248]
[1729738897778,5.73739103,2555.8,2555.7,0.35248]
[1729738898275,5.73739103,2555.8,2555.6,3.2078]
[1729738898477,0.35248,2555.7,2555.6,3.56029]
[1729738898878,4.89375057,2555.7,2555.6,3.56029]
[1729738899075,4.54127057,2555.7,2555.6,3.56029]
[1729738899282,4.89375057,2555.7,2555.6,3.56029]
[1729738900082,4.54127057,2555.7,2555.6,3.56029]
[1729738900584,3.2078,2556.3,2555.6,7.1206]
[1729738900878,3.2078,2556.3,2556.2,0.35241]
[1729738901080,3.2078,2556.3,2555.6,3.2078]
[1729738901381,4.4256914,2556.2,2556.1,0.35243]
[1729738901581,48.8580914,2556.3,2556.2,0.35241]
[1729738901876,3.2078,2556.3,2556.2,0.35241]
[1729738902083,7.6334914,2556.3,2556.2,0.35241]
[1729738902678,4.4256914,2556.3,2556.2,0.35241]
[1729738906372,4.7780914,2556.3,2556.2,0.35241]
[1729738907984,4.4256914,2556.3,2556.2,0.35241]
[1729738909787,4.4256914,2556.3,2556.0,0.4339]
[1729738910082,0.35243,2556.1,2556.0,0.78634]
[1729738910284,0.35243,2556.1,2556.0,0.4339]
[1729738910483,41.15243,2556.1,2556.0,0.4339]
[1729738910677,0.35243,2556.1,2556.0,0.78634]
[1729738911386,0.35244,2556.0,2555.9,0.35245]
[1729738911785,4.44639527,2556.0,2555.9,0.35245]
[1729738912483,4.09395527,2556.0,2555.9,0.35245]
[1729738912677,4.44639527,2556.0,2555.9,0.35245]
[1729738913387,4.09395527,2556.0,2555.9,0.35245]
[1729738914177,4.09395527,2556.0,2555.9,0.76095]
[1729738914579,4.44639527,2556.0,2555.9,0.76095]
[1729738915188,4.09395527,2556.0,2555.9,0.76095]
[1729738916581,4.44639527,2556.0,2555.9,0.76095]
[1729738916776,4.09395527,2556.0,2555.9,0.76095]
[1729738917377,4.44639527,2556.0,2555.9,0.4085]
[1729738918086,4.44639527,2556.0,2555.6,3.2078]
[1729738918087,4.09395527,2556.0,2555.6,3.2078]
[1729738918392,0.35248,2555.8,2555.7,0.35248]
[1729738918591,0.35248,2555.8,2555.6,3.2078]
[1729738918891,0.35248,2555.8,2555.7,0.35248]
[1729738919193,0.35248,2555.8,2555.6,3.2078]
[1729738919194,0.78558,2555.8,2555.6,3.2078]
[1729738919384,0.78558,2555.8,2555.6,3.56029]
[1729738919586,0.78558,2555.8,2555.6,3.2078]
[1729738919882,0.78558,2555.8,2555.7,0.35248]
[1729738920088,0.78558,2555.8,2555.6,3.56029]
[1729738920584,0.78558,2555.8,2555.7,0.35248]
[1729738920990,0.4331,2555.8,2555.6,3.56029]
[1729738921194,0.78558,2555.8,2555.6,3.56029]
[1729738921393,0.35248,2555.7,2555.6,3.2078]
[1729738921691,4.58581845,2555.7,2555.6,3.2078]
[1729738922187,5.01991845,2555.7,2555.6,3.2078]
[1729738922989,0.35257,2555.2,2555.0,20.28318]
[1729738923289,2.44341309,2555.2,2555.1,0.35257]
[1729738923592,6.85877675,2555.2,2555.1,0.35257]
[1729738924290,4.41536366,2555.2,2555.1,0.35257]
[1729738924494,3.2078,2555.5,2555.1,4.26617]
[1729738924495,40.8,2555.5,2555.1,4.26617]
[1729738924690,2.87751309,2555.7,2555.2,3.2078]
[1729738924890,2.87751309,2555.7,2555.6,0.3525]
[1729738925091,0.4228,2555.9,2555.7,0.35247]
[1729738925297,5.65121309,2556.0,2555.9,0.35246]
[1729738925492,6.00366309,2556.0,2555.8,0.76216]
[1729738925699,4.24220776,2555.9,2555.8,0.76216]
[1729738925892,10.24587085,2556.0,2555.8,0.76216]
[1729738926195,6.00366309,2556.0,2555.8,0.76216]
[1729738926498,4.08157264,2555.9,2555.8,0.76216]
[1729738928399,4.21150313,2556.0,2555.8,0.4097]
[1729738928701,0.75953,2556.1,2555.9,1.17575]
[1729738928899,4.21150313,2556.0,2555.9,1.17575]
[1729738929599,4.21150313,2556.0,2555.9,1.29822915]
[1729738929904,4.21150313,2556.0,2555.9,1.29822975]
[1729738931497,4.21150313,2556.0,2555.9,1.29822778]
[1729738933194,4.21150313,2556.0,2555.9,1.17575]
[1729738938002,3.2078,2556.3,2555.9,4.7361]
[1729738938194,3.2078,2556.3,2556.2,0.35241]
[1729738939103,3.5602,2556.3,2556.2,0.35241]
[1729738939291,6.00362309,2556.3,2556.2,0.35241]
[1729738939496,10.12112908,2556.3,2556.2,0.35241]
[1729738939700,10.47352908,2556.3,2556.2,0.35241]
[1729738940006,10.89892908,2556.3,2556.2,0.35241]
[1729738940699,7.33872908,2556.3,2556.2,0.35241]
[1729738940900,4.46991599,2556.3,2556.2,0.35241]
[1729738941295,44.07951309,2556.6,2556.2,0.35241]
[1729738941296,4.51475805,2556.4,2556.3,0.35239]
[1729738941494,0.8496,2557.2,2557.1,0.35229]
[1729738941694,0.35227,2557.3,2557.1,0.35229]
[1729738941898,2.99749638,2557.2,2556.7,4.022]
[1729738942108,0.3523,2557.1,2556.9,0.35232]
[1729738942307,2.44341309,2557.2,2556.7,4.022]
[1729738942608,2.79570309,2557.2,2557.1,0.35229]
[1729738942804,2.79570309,2557.2,2556.7,4.022]
[1729738942999,4.3787296,2557.1,2557.0,0.3523]
[1729738943204,0.3523,2557.1,2556.9,0.35231]
[1729738943512,2.79570309,2557.2,2557.0,0.3523]
[1729738943803,4.57438336,2557.1,2557.0,0.3523]
[1729738944303,4.22208336,2557.1,2556.7,4.022]
[1729738944504,4.22208336,2557.1,2557.0,0.3523]
[1729738945811,4.57437336,2557.1,2557.0,0.3523]
[1729738946808,4.57437336,2557.1,2556.9,0.35231]
[1729738947002,4.57437336,2557.1,2556.7,4.022]
[1729738947003,4.22208336,2557.1,2556.8,0.35233]
[1729738947210,0.35232,2556.9,2556.8,0.35233]
[1729738947611,1.19441,2557.0,2556.8,0.35233]
[1729738947811,3.28551309,2557.0,2556.7,0.35234]
[1729738948111,4.51127782,2556.9,2556.5,0.4134]
[1729738948321,4.86359782,2556.9,2556.8,0.35233]
[1729738948608,4.51127782,2556.9,2556.8,0.35233]
[1729738949013,4.86359782,2556.9,2556.7,0.35234]
[1729738949315,0.35234,2556.8,2556.6,0.35235]
[1729738949505,0.35235,2556.7,2556.5,0.76577]
[1729738949700,4.64974315,2556.7,2556.6,0.35236]
[1729738949900,0.35235,2556.7,2556.5,0.76577]
[1729738950220,0.35239,2556.4,2556.0,3.2078]
[1729738950407,0.4219,2556.3,2556.2,0.3524]
[1729738950710,4.82343734,2556.3,2556.2,0.3524]
[1729738951106,4.82343734,2556.3,2556.0,4.7442]
[1729738951313,5.17584734,2556.3,2556.1,0.35243]
[1729738951512,4.82343734,2556.3,2556.2,0.35241]
[1729738952614,5.17583734,2556.3,2556.1,0.35242]
[1729738953307,4.82343734,2556.3,2556.2,0.35241]
[1729738953703,3.34443734,2556.3,2556.2,6.70782309]
[1729738953921,3.21368309,2557.3,2557.0,0.35229]
[1729738954111,3.21368309,2557.3,2557.1,0.35229]
[1729738954312,4.1813412,2557.2,2557.1,0.35229]
[1729738954713,8.0917412,2557.2,2556.8,0.4013]
[1729738955013,4.9931412,2557.2,2556.8,0.4013]
[1729738955217,3.2078,2557.1,2556.7,3.6298]
[1729738955420,0.3523,2557.0,2556.8,0.35232]
[1729738955613,4.5664536,2557.0,2556.8,0.35232]
[1729738956916,0.35232,2556.9,2556.7,3.98214]
[1729738957116,0.4022,2556.8,2556.7,3.98214]
[1729738957621,4.70615975,2556.8,2556.7,3.56014]
[1729738957818,5.05848975,2556.8,2556.7,3.2078]
[1729738958611,5.05848975,2556.8,2556.7,3.56015]
[1729738958612,4.70615975,2556.8,2556.7,3.56015]
[1729738958920,5.05848975,2556.8,2556.7,3.2078]
[1729738959119,4.70615975,2556.8,2556.7,3.56015]
[1729738959722,4.30395975,2556.8,2556.7,3.56015]
[1729738960123,4.8658279,2557.0,2556.9,0.35232]
[1729738960318,0.4309,2557.0,2556.9,0.35232]
[1729738960621,4.90051027,2557.0,2556.9,0.35232]
[1729738962422,5.25282027,2557.0,2556.8,0.79122]
[1729738962730,0.35232,2556.9,2556.8,0.4389]
[1729738963022,4.8217824,2556.9,2556.7,0.35234]
[1729738963322,0.35234,2556.8,2556.6,0.35235]
[1729738963518,0.35235,2556.7,2556.6,0.35235]
[1729738963715,4.40419978,2556.7,2556.6,0.35235]
[1729738969332,4.40419978,2556.7,2556.5,4.0153]
[1729738969333,4.40419978,2556.7,2556.5,3.614]
[1729738969534,4.40419978,2556.7,2556.6,0.35236]
[1729738970536,4.75654978,2556.7,2556.5,3.96637]
[1729738970731,5.15914978,2556.7,2556.5,3.96637]
[1729738970932,5.15914978,2556.7,2556.5,3.614]
[1729738970933,4.80679978,2556.7,2556.5,3.614]
[1729738971129,5.15914978,2556.7,2556.6,0.35236]
[1729738971431,5.15914978,2556.7,2556.5,3.96637]
[1729738972042,5.15914978,2556.7,2556.6,0.35236]
[1729738972747,4.80679978,2556.7,2556.6,0.35236]
[1729738974339,4.40419978,2556.7,2556.6,0.35236]
[1729738975631,4.30887001,2556.8,2556.7,0.35234]
[1729738975852,0.88069,2557.3,2556.5,3.614]
[1729738975853,3.2078,2557.5,2556.5,3.614]
[1729738976139,4.66115001,2557.2,2557.0,0.3523]
[1729738976444,3.2078,2558.4,2557.1,1.31740309]
[1729738976732,4.40616563,2557.8,2557.7,0.35221]
[1729738977138,4.40616563,2557.8,2557.6,3.2078]
[1729738977139,0.35216,2558.1,2557.8,0.35219]
[1729738977532,4.51846455,2558.1,2557.8,0.35219]
[1729738978938,4.51846455,2558.1,2557.6,3.2078]
[1729738979140,4.16630455,2558.1,2557.7,0.3522]
[1729738979339,0.35217,2558.0,2557.7,0.3522]
[1729738979640,4.14055971,2557.9,2557.6,3.2078]
[1729738979844,4.14055971,2557.9,2557.6,5.65121309]
[1729738980039,4.14055971,2558.0,2557.6,5.65121309]
[1729738980254,0.35217,2558.0,2557.7,0.3522]
[1729738980640,4.14513207,2557.9,2557.8,0.35218]
[1729738981037,4.14513207,2557.9,2557.4,0.35225]
[1729738981038,3.55999,2557.9,2557.4,0.35225]
[1729738981342,3.55999,2557.9,2557.3,3.6129]
[1729738981343,4.1869811,2557.8,2557.3,3.6129]
[1729738981542,4.1869811,2557.8,2557.7,0.35221]
[1729738981733,0.35216,2558.1,2557.8,0.35219]
[1729738981734,4.1869811,2558.0,2557.8,0.35219]
[1729738981934,0.35216,2558.1,2557.8,0.35219]
[1729738982239,0.35216,2558.1,2557.6,3.2078]
[1729738982240,4.1869811,2558.0,2557.9,0.35217]
[1729738982636,4.6422121,2558.1,2557.6,5.65121309]
[1729738982940,0.35216,2558.1,2557.9,0.35218]
[1729738983235,0.35216,2558.1,2557.6,5.65121309]
[1729738983236,4.2900521,2558.0,2557.6,5.65121309]
[1729738983440,4.2900521,2558.0,2557.9,3.55998]
[1729738983741,4.19388468,2558.1,2558.0,0.35217]
[1729738983940,0.4108,2558.2,2558.0,0.35217]
[1729738984242,4.54604468,2558.1,2557.9,3.2078]
[1729738984538,4.19388468,2558.1,2557.9,3.2078]
[1729738984745,4.19388468,2558.1,2557.9,0.35217]
[1729738985443,4.19388468,2558.1,2557.6,5.65121309]
[1729738985444,4.54603468,2558.1,2557.8,0.35219]
[1729738985742,4.54603468,2558.1,2557.6,5.65121309]
[1729738985933,4.19388468,2558.1,2557.9,0.35217]
[1729738986339,4.54604468,2558.1,2557.8,0.35219]
[1729738987935,4.19388468,2558.1,2557.6,3.2078]
[1729738988139,0.35221,2557.7,2557.6,3.2078]
[1729738988438,4.59949133,2557.7,2557.6,3.2078]
[1729738988637,4.59949133,2557.7,2557.5,3.2078]
[1729738988638,8.15688133,2557.7,2557.5,3.2078]
[1729738988837,0.35227,2557.3,2557.0,0.3523]
[1729738989138,4.59957133,2557.2,2557.0,3.2078]
[1729738989337,4.59957133,2557.2,2556.9,0.35231]
[1729738989536,0.4228,2557.1,2556.9,0.35231]
[1729738989732,4.62645518,2557.1,2556.7,3.2078]
[1729738990137,0.7634,2557.0,2556.5,2.44341309]
[1729738990339,0.4111,2557.0,2556.5,2.44341309]
[1729738990643,4.81247975,2556.9,2556.6,0.35235]
[1729738990843,0.35233,2556.8,2556.6,0.35235]
[1729738991046,4.46014975,2556.9,2556.4,3.56018]
[1729738991243,4.46014975,2556.7,2556.5,0.35236]
[1729738991433,4.2641622,2556.9,2556.4,3.56018]
[1729738991634,0.35236,2556.6,2556.4,3.2078]
[1729738991840,0.35237,2556.5,2556.4,3.2078]
[1729738992040,4.2641622,2556.5,2556.4,3.2078]
[1729738992337,0.35237,2556.5,2556.4,3.2078]
[1729738992541,4.70718208,2556.5,2556.4,3.2078]
[1729738992844,0.35237,2556.5,2556.4,3.2078]
[1729738993146,4.35481208,2556.5,2556.4,3.56018]
[1729738993741,0.76341,2557.0,2556.4,7.1198]
[1729738993945,0.76341,2557.0,2556.7,0.35234]
[1729738993946,0.4365,2556.9,2556.7,0.35234]
[1729738994245,4.5647539,2556.9,2556.7,0.35234]
[1729738994742,4.5647539,2556.9,2556.8,0.35233]
[1729738994948,4.9170739,2556.9,2556.6,0.35236]
[1729738995449,0.35234,2556.8,2556.5,0.35236]
[1729738995746,4.21609469,2556.7,2556.4,3.2078]
[1729738995949,0.35236,2556.6,2556.4,3.2078]
[1729738996345,4.21609469,2556.5,2556.4,3.56019]
[1729738997539,4.21609469,2556.5,2556.4,7.47219]
[1729738997749,0.4365,2556.9,2556.4,7.1198]
[1729738997948,0.4365,2556.9,2556.4,3.6389]
[1729738998147,4.29784629,2556.8,2556.4,3.7109]
[1729738998345,4.29784629,2556.8,2556.7,0.35233]
[1729738998652,4.29784629,2556.8,2556.6,0.35235]
[1729738999044,4.65017629,2556.8,2556.6,0.35235]
[1729738999244,4.29784629,2556.8,2556.5,0.35237]
[1729738999446,4.29784629,2556.8,2556.6,0.35235]
[1729739000745,4.65018629,2556.8,2556.5,3.56016]
[1729739001055,4.65018629,2556.8,2556.6,0.35236]
[1729739001351,4.29784629,2556.8,2556.6,0.35236]
[1729739002243,4.29784629,2556.8,2556.7,0.35235]
[1729739002445,4.29784629,2556.8,2556.6,0.35235]
[1729739003153,4.29784629,2556.8,2556.7,0.35235]
[1729739003346,4.65018629,2556.8,2556.6,0.35235]
[1729739003547,4.29784629,2556.8,2556.6,0.35236]
[1729739004545,4.29784629,2556.8,2556.5,3.2078]
[1729739004744,4.29784629,2556.8,2556.7,0.35235]
[1729739006950,0.4365,2556.9,2556.5,5.65121309]
[1729739007142,0.4365,2556.9,2556.8,3.56013]
[1729739009853,0.78882,2556.9,2556.8,3.2078]
[1729739010052,0.78882,2556.9,2556.7,0.35234]
[1729739010259,0.78882,2556.9,2556.5,3.2078]
[1729739010460,0.4365,2556.9,2556.8,0.35233]
[1729739010664,0.78882,2556.9,2556.8,0.35233]
[1729739010962,4.95153569,2556.9,2556.8,0.35233]
[1729739011658,4.59921569,2556.9,2556.8,0.35233]
[1729739013753,4.95153569,2556.9,2556.8,0.35233]
[1729739013953,4.59921569,2556.9,2556.8,0.35233]
[1729739015763,4.59921569,2556.9,2556.5,3.2078]
[1729739015975,4.95154569,2556.9,2556.7,0.35234]
[1729739016362,0.35233,2556.8,2556.5,3.2078]